bitfinex/quotes_ETHUSD_20250110
["timestamp","ask_amount","ask_price","bid_price","bid_amount"]
[1736527491327,0.7772,3259.0,3257.8,0.61108242]
[1736527491542,3.06855,3258.9,3257.8,3.68054242]
[1736527491767,0.384575,3258.8,3257.8,3.68054242]
[1736527492558,0.384575,3258.8,3257.9,3.06945]
[1736527492764,0.384575,3258.8,3257.8,0.61108242]
[1736527492936,0.8198,3258.7,3257.8,0.61108242]
[1736527493275,0.8198,3258.7,3257.9,3.06945]
[1736527494479,0.8198,3258.7,3257.9,0.03068981]
[1736527494771,0.8198,3258.7,3258.3,3.06906]
[1736527495165,0.8198,3258.7,3258.1,3.06926]
[1736527495372,0.8198,3258.7,3258.1,0.306926]
[1736527495599,0.8198,3258.7,3258.3,3.06908]
[1736527495790,0.8198,3258.7,3258.1,3.06923]
[1736527496896,0.8198,3258.7,3257.9,3.06942]
[1736527497103,0.8198,3258.7,3258.1,3.06925]
[1736527497299,0.8198,3258.7,3257.9,3.50678357]
[1736527497507,0.8198,3258.7,3258.0,3.06936]
[1736527497701,0.8198,3258.7,3257.9,4.22363055]
[1736527498015,0.8198,3258.7,3258.0,0.03069058]
[1736527498223,0.8198,3258.7,3258.2,3.06909]
[1736527499103,0.8198,3258.7,3258.0,3.06936]
[1736527499913,1.208633,3258.7,3258.0,3.06936]
[1736527500211,1.208633,3258.7,3257.9,3.47609295]
[1736527500513,3.86605,3258.3,3257.3,3.06998]
[1736527500719,0.7969,3258.3,3257.3,3.06998]
[1736527500882,3.06918,3258.2,3257.3,3.06998]
[1736527501217,0.7969,3258.3,3257.6,3.06974]
[1736527501517,0.7969,3258.3,3258.0,3.0693]
[1736527501706,0.7969,3258.3,3257.5,4.27519295]
[1736527501707,0.7969,3258.3,3257.8,3.06951]
[1736527501902,0.7969,3258.3,3257.9,3.1001032]
[1736527502105,0.7969,3258.3,3258.0,3.06936]
[1736527503642,0.7572,3258.8,3258.0,3.06936]
[1736527503846,0.7572,3258.8,3258.1,3.09996145]
[1736527504045,0.7572,3258.8,3258.2,3.06917]
[1736527504343,0.7572,3258.8,3258.3,3.06905]
[1736527504849,0.8246,3259.7,3258.7,3.0687]
[1736527505143,3.06797,3259.5,3258.3,3.78299795]
[1736527505345,0.8246,3259.4,3258.3,3.78299795]
[1736527505545,3.89271,3259.4,3258.5,3.06887]
[1736527505849,0.8246,3259.4,3258.6,3.06878]
[1736527506049,3.457398,3259.3,3258.3,3.78299795]
[1736527506347,3.85081,3259.0,3258.0,3.35731]
[1736527506545,3.85081,3259.0,3257.9,3.47609295]
[1736527506546,0.7823,3259.0,3257.9,3.47609295]
[1736527506762,0.7823,3259.0,3257.8,3.06953]
[1736527506933,0.7823,3258.5,3257.9,0.60814838]
[1736527507134,0.7823,3258.5,3257.5,6.54590295]
[1736527507447,3.85126,3258.5,3257.5,3.47609295]
[1736527507620,3.454136,3258.4,3257.5,7.17539801]
[1736527508020,0.385126,3258.4,3257.5,4.10556801]
[1736527508257,0.7823,3258.5,3257.5,7.17530801]
[1736527508457,0.7823,3258.5,3257.5,4.10556801]
[1736527508746,0.8026,3259.6,3258.4,3.06899]
[1736527508950,0.8026,3259.3,3258.5,0.03068964]
[1736527509261,0.8026,3259.3,3258.9,3.0685]
[1736527509422,0.8026,3259.3,3258.9,3.06848]
[1736527509625,0.8026,3259.3,3258.6,0.03068375]
[1736527509828,0.7527,3260.1,3259.5,3.06792]
[1736527510023,0.7527,3260.1,3259.6,0.0306787]
[1736527510232,0.7527,3260.1,3259.5,3.47609295]
[1736527510435,0.7527,3260.1,3259.5,6.9234897]
[1736527510687,0.7527,3260.1,3259.5,3.44737675]
[1736527510911,0.7527,3260.1,3259.8,3.06762]
[1736527511230,2e-06,3260.2,3259.6,3.06777]
[1736527511733,2e-06,3260.2,3259.5,4.07433205]
[1736527512041,2e-06,3260.2,3259.4,3.69525268]
[1736527512171,2e-06,3260.2,3259.3,0.288]
[1736527512505,0.7885,3260.1,3259.3,0.288]
[1736527512703,0.7885,3260.1,3259.1,0.61535813]
[1736527512904,3.06759,3259.9,3258.8,3.06855]
[1736527513065,1.095259,3259.8,3258.9,3.09917209]
[1736527513265,4.162939,3259.8,3258.7,3.96176191]
[1736527513465,0.306759,3259.8,3258.4,0.287]
[1736527513666,0.306759,3259.8,3259.1,3.06832]
[1736527513905,0.7885,3260.0,3259.1,3.06832]
[1736527514077,0.7885,3260.0,3258.9,3.06849]
[1736527514286,3.06767,3259.8,3258.8,3.09926179]
[1736527514486,3.06767,3259.8,3258.8,3.06858]
[1736527514814,3.067342,3260.2,3258.8,0.03068378]
[1736527514815,0.7535,3259.7,3258.8,0.03068378]
[1736527515021,0.7535,3259.8,3258.4,3.35599]
[1736527515171,3.06815,3259.3,3258.4,0.287]
[1736527515483,1.060315,3259.2,3258.4,0.287]
[1736527515817,1.060315,3259.2,3258.4,3.35596]
[1736527516320,0.7535,3259.2,3258.5,3.09954576]
[1736527517219,0.7535,3259.2,3258.4,0.287]
[1736527517617,3.82173,3259.2,3258.4,0.287]
[1736527517920,3.06838,3259.1,3258.4,0.287]
[1736527518704,3.06844,3259.0,3258.4,0.287]
[1736527518910,3.450634,3259.0,3258.4,0.287]
[1736527519091,0.382194,3259.0,3258.5,3.06887]
[1736527519290,3.84687,3260.1,3259.1,3.06832]
[1736527520213,3.84687,3260.1,3259.2,3.06822]
[1736527520583,3.84687,3260.1,3259.6,3.06783]
[1736527520584,0.7794,3260.1,3259.6,3.06783]
[1736527520790,2e-06,3260.2,3259.7,0.03067543]
[1736527521146,2e-06,3260.2,3260.1,3.06739]
[1736527521350,2e-06,3260.2,3260.1,3.89645942]
[1736527521930,1.65281171,3262.3,3260.2,0.5575]
[1736527522085,0.8101,3262.3,3261.3,3.06624]
[1736527522280,0.8101,3262.3,3261.5,3.06606]
[1736527522895,0.8101,3262.3,3261.3,0.03065793]
[1736527523093,0.8101,3262.3,3261.5,3.06599]
[1736527523547,0.165932,3263.4,3263.2,3.0644]
[1736527523682,0.165932,3263.4,3262.9,3.06467]
[1736527524002,0.165932,3263.4,3263.0,0.03064296]
[1736527524204,0.165932,3263.4,3262.1,0.7858]
[1736527524406,0.8135,3263.3,3261.6,0.7744]
[1736527524605,3.06459,3263.1,3262.0,3.06558]
[1736527524843,0.0075,3263.2,3261.6,1.1994493]
[1736527525140,3.06478,3262.9,3261.6,3.4909993]
[1736527525343,0.7628,3262.8,3261.5,0.61372826]
[1736527525617,0.7628,3262.8,3261.2,1.0545]
[1736527525772,3.06515,3262.5,3261.3,0.03065463]
[1736527525926,0.7628,3262.8,3261.3,0.03065463]
[1736527526127,0.7628,3262.8,3261.4,0.61587782]
[1736527526461,0.7628,3262.8,3261.8,3.06572]
[1736527526863,0.7628,3262.8,3261.9,3.06569]
[1736527527540,0.7628,3262.8,3261.4,3.85207107]
[1736527527541,0.7628,3262.8,3262.2,3.06539]
[1736527528362,0.7628,3262.8,3262.0,0.03065482]
[1736527528566,0.7628,3262.8,3261.9,0.61624631]
[1736527528737,0.7628,3262.8,3262.3,3.06524]
[1736527529064,0.7628,3262.8,3262.1,3.06549]
[1736527529231,0.7628,3262.8,3262.1,3.06543]
[1736527529787,0.7628,3262.8,3262.0,0.03065134]
[1736527529993,0.7611,3263.3,3262.5,3.06505]
[1736527530353,0.7611,3263.3,3262.2,0.03065134]
[1736527530587,0.7611,3263.3,3262.6,3.06503]
[1736527531492,0.7611,3263.3,3262.6,3.06501]
[1736527531694,0.165932,3263.4,3263.3,3.06438]
[1736527531982,0.8081,3264.4,3263.3,4.31381013]
[1736527532164,0.8081,3264.4,3263.4,0.31763683]
[1736527532359,0.8081,3264.9,3264.0,3.06367]
[1736527532661,0.8081,3264.9,3263.6,3.0641]
[1736527532662,3.06307,3264.7,3263.6,3.06408]
[1736527532848,0.015,3264.8,3263.4,3.35127]
[1736527533048,33.0,3265.0,3263.3,4.00737213]
[1736527533249,33.0,3265.0,3264.0,0.8239]
[1736527533600,33.0,3265.0,3264.8,3.06296]
[1736527533730,33.0,3265.0,3264.0,1.1109]
[1736527533936,0.8081,3264.9,3264.0,4.17461]
[1736527534194,33.0,3265.0,3264.0,0.287]
[1736527534409,33.0,3265.0,3263.9,0.5993836]
[1736527534410,31.46861,3265.0,3264.6,3.887]
[1736527534614,31.46861,3265.0,3264.9,3.06288]
[1736527534914,31.46861,3265.0,3264.8,3.06295]
[1736527535077,31.46861,3265.0,3264.5,0.030627]
[1736527535470,31.46861,3265.0,3264.3,0.287]
[1736527535675,31.46861,3265.0,3264.4,3.06334]
[1736527535998,31.46861,3265.0,3264.2,0.0306295]
[1736527536199,31.46861,3265.0,3264.4,4.00737213]
[1736527536511,31.46861,3265.0,3264.6,3.06312]
[1736527536656,31.46861,3265.0,3264.5,0.03062807]
[1736527536870,31.46861,3265.0,3264.1,0.287]
[1736527537071,31.46861,3265.0,3264.2,0.03063133]
[1736527537300,31.46861,3265.0,3264.3,3.06344]
[1736527537485,31.46861,3265.0,3263.9,4.00737213]
[1736527537680,31.46861,3265.0,3264.1,3.06363]
[1736527537886,31.46861,3265.0,3264.2,3.09413136]
[1736527538090,31.46861,3265.0,3264.2,0.03063136]
[1736527538287,31.46861,3265.0,3264.4,3.06331]
[1736527538471,31.46861,3265.0,3264.1,0.60742861]
[1736527538697,37.6661471,3265.0,3264.0,3.0637]
[1736527538871,34.6033571,3265.0,3264.1,3.06362]
[1736527539074,34.6033571,3265.0,3264.0,0.60472975]
[1736527539317,0.8006,3264.9,3264.0,0.60472975]
[1736527539617,0.8006,3264.9,3263.8,3.06389]
[1736527539785,1.70612451,3264.9,3263.8,0.635089]
[1736527539978,1.70612451,3264.9,3263.6,3.3511]
[1736527539979,3.0631,3264.7,3263.6,3.3511]
[1736527540180,4.76900451,3264.9,3263.8,3.06387]
[1736527540382,3.0631,3264.7,3263.7,0.03063475]
[1736527540578,0.8006,3264.9,3264.5,3.06324]
[1736527540946,0.8006,3264.9,3264.5,0.70706121]
[1736527541277,31.46861,3265.0,3264.5,3.77030121]
[1736527541473,31.46861,3265.0,3263.9,0.7708]
[1736527541678,31.46861,3265.0,3263.9,3.83454]
[1736527541878,31.46861,3265.0,3264.0,0.03063034]
[1736527542091,31.46861,3265.0,3264.3,3.0634]
[1736527542306,31.46861,3265.0,3264.0,0.03063033]
[1736527542307,31.46861,3265.0,3264.1,0.6268175]
[1736527542504,0.7679,3264.9,3263.8,3.06391]
[1736527542703,3.83085,3264.9,3263.9,0.03063467]
[1736527542888,3.06299,3264.8,3263.6,3.06406]
[1736527543219,0.7679,3264.9,3263.9,3.67068861]
[1736527543420,34.6033571,3265.0,3264.0,0.03063467]
[1736527543720,34.6033571,3265.0,3264.0,0.49512321]
[1736527544225,0.7808,3264.9,3263.8,3.06387]
[1736527544517,0.7808,3264.9,3263.6,0.63162385]
[1736527544518,3.06326,3264.5,3263.6,0.63162385]
[1736527544681,0.7808,3264.9,3263.1,0.8202]
[1736527544682,3.06347,3264.3,3263.1,0.8202]
[1736527544881,0.0075,3264.6,3263.4,3.0642]
[1736527545113,3.06336,3264.4,3263.4,3.0642]
[1736527545317,0.307086,3264.4,3263.4,0.60000736]
[1736527545496,3.06335,3264.4,3263.4,0.60000736]
[1736527545692,3.06347,3264.3,3263.4,0.60000736]
[1736527546024,3.06345,3264.3,3263.2,3.06444]
[1736527546314,3.06345,3264.3,3263.3,3.06436]
[1736527547086,3.06365,3264.1,3263.1,3.06452]
[1736527547421,3.06382,3263.9,3263.0,0.65224305]
[1736527547592,3.06382,3263.9,3263.0,0.03064034]
[1736527548282,0.7767,3264.0,3263.0,3.09528034]
[1736527548509,0.7767,3264.0,3262.8,4.62312304]
[1736527548510,0.7767,3264.0,3262.8,4.00737213]
[1736527548916,3.06382,3263.9,3262.9,3.06471]
[1736527549086,3.06382,3263.9,3263.0,0.70720821]
[1736527549618,3.06391,3263.8,3263.0,0.70720821]
[1736527550222,0.7767,3264.0,3263.1,0.0306449]
[1736527550422,0.7767,3264.0,3263.2,3.06444]
[1736527550638,0.7767,3264.0,3263.1,0.0306449]
[1736527550818,0.7767,3264.0,3263.3,0.0306417]
[1736527551727,0.7767,3264.0,3263.5,3.06417]
[1736527552239,3.84044,3264.0,3263.0,3.77183821]
[1736527552444,0.384044,3263.9,3263.0,3.77183821]
[1736527552625,0.7767,3264.0,3263.0,0.70720821]
[1736527553113,3.06421,3263.5,3262.7,0.61703961]
[1736527553523,3.06403,3263.7,3262.7,0.64768584]
[1736527554142,3.06293,3264.9,3262.7,0.64768584]
[1736527554143,31.46861,3265.0,3264.6,0.7571]
[1736527554403,31.46861,3265.0,3264.9,3.07038]
[1736527554629,31.46861,3265.0,3264.9,3.369918]
[1736527554832,31.46861,3265.0,3264.9,3.06288]
[1736527555698,23.81166,3265.0,3264.9,7.41278]
[1736527555845,23.81166,3265.0,3264.9,6.85528]
[1736527556158,22.28027,3265.0,3264.9,7.41278]
[1736527556448,16.15471,3265.0,3264.9,6.85528]
[1736527556618,16.15471,3265.0,3264.9,7.569508]
[1736527557743,16.15471,3265.0,3264.9,3.85528]
[1736527558103,16.15471,3265.0,3264.3,3.3504]
[1736527558104,16.15471,3265.0,3264.8,3.06297]
[1736527558308,16.15471,3265.0,3264.7,3.06298]
[1736527558533,16.15471,3265.0,3264.4,0.03062836]
[1736527558702,16.15471,3265.0,3264.8,3.06295]
[1736527559243,16.15471,3265.0,3264.4,0.61621969]
[1736527559465,16.15471,3265.0,3264.7,3.06305]
[1736527559766,16.15471,3265.0,3264.9,3.06288]
[1736527559968,16.15471,3265.0,3264.7,3.06305]
[1736527560267,16.15471,3265.0,3264.8,3.06296]
[1736527560682,16.15471,3265.0,3264.2,0.7866]
[1736527560844,16.15471,3265.0,3264.3,3.06342]
[1736527561174,17.770181,3265.0,3264.1,3.06358]
[1736527561333,17.770181,3265.0,3263.9,3.68087836]
[1736527561668,17.770181,3265.0,3263.9,0.64771297]
[1736527561872,16.15471,3265.0,3263.9,0.64771297]
[1736527562073,16.15471,3265.0,3264.1,3.06363]
[1736527562258,16.15471,3265.0,3264.1,3.06354]
[1736527562465,19.21751,3265.0,3263.9,0.61707836]
[1736527562775,16.15471,3265.0,3264.1,3.06362]
[1736527563076,21.220251,3265.0,3263.9,3.68088836]
[1736527563249,3.83188,3264.9,3263.9,0.61707836]
[1736527563572,0.769,3264.9,3263.9,0.61707836]
[1736527563794,0.769,3264.9,3264.0,0.03063561]
[1736527563968,16.15471,3265.0,3264.4,3.06334]
[1736527564272,16.15471,3265.0,3264.5,3.06322]
[1736527565133,16.15471,3265.0,3264.5,0.306322]
[1736527565336,16.15471,3265.0,3264.9,3.06288]
[1736527565975,16.15471,3265.0,3264.5,1.068522]
[1736527565976,16.15471,3265.0,3264.7,3.06305]
[1736527566184,16.15471,3265.0,3264.6,3.06314]
[1736527566355,16.15471,3265.0,3264.6,0.03062853]
[1736527566548,16.15471,3265.0,3264.9,3.06288]
[1736527566751,16.15471,3265.0,3264.7,3.06304]
[1736527566959,16.15471,3265.0,3264.6,3.06316]
[1736527567159,17.770181,3265.0,3264.2,0.8102]
[1736527567364,0.7975,3264.9,3264.0,3.06371]
[1736527567873,0.7975,3264.9,3263.9,0.60221966]
[1736527568071,0.015,3264.8,3263.6,3.06407]
[1736527568375,0.015,3264.8,3263.4,3.82446]
[1736527568575,0.015,3264.8,3263.5,3.67443662]
[1736527568576,3.06308,3264.7,3263.5,3.67443662]
[1736527568773,0.015,3264.8,3263.5,0.61025662]
[1736527568977,3.0631,3264.7,3263.5,3.67441662]
[1736527569185,3.0631,3264.7,3263.6,3.06407]
[1736527569508,3.06319,3264.6,3263.5,0.61025662]
[1736527569649,1.104619,3264.5,3263.4,3.06425]
[1736527569847,0.7983,3264.5,3263.4,3.06425]
[1736527570049,0.7983,3264.5,3263.3,0.62228138]
[1736527570274,0.7983,3264.5,3263.3,3.0]
[1736527570275,3.06344,3264.3,3263.3,3.0]
[1736527570478,3.86158,3264.5,3263.4,3.06428]
[1736527570730,3.86158,3264.5,3263.2,3.0]
[1736527570899,4.247738,3264.5,3263.4,3.06426]
[1736527571622,1.184458,3264.5,3263.3,0.606457]
[1736527571751,1.184458,3264.5,3263.2,3.06444]
[1736527571752,3.06344,3264.3,3263.2,3.06444]
[1736527571960,3.06354,3264.2,3263.2,3.06444]
[1736527572811,0.0225,3264.4,3263.1,0.61803422]
[1736527572968,3.08589,3264.4,3263.3,3.06437]
[1736527573299,3.06348,3264.3,3263.3,3.06437]
[1736527573473,0.308598,3264.2,3263.3,3.06437]
[1736527573675,0.308598,3264.2,3263.1,0.61803422]
[1736527573880,0.0225,3264.4,3263.3,3.06438]
[1736527575401,0.7983,3264.5,3263.1,0.61803422]
[1736527575402,0.7983,3264.5,3263.4,0.03064317]
[1736527575627,0.7983,3264.5,3263.7,3.06394]
[1736527575767,0.7983,3264.5,3263.5,3.03063714]
[1736527576101,0.7888,3264.9,3263.7,3.8492]
[1736527576304,16.15471,3265.0,3264.8,3.06297]
[1736527576671,16.15471,3265.0,3264.9,3.06288]
[1736527576901,16.15471,3265.0,3264.7,3.06303]
[1736527577322,16.15471,3265.0,3264.0,3.0]
[1736527577467,19.21751,3265.0,3264.1,0.62742161]
[1736527577671,16.15471,3265.0,3264.2,0.03063368]
[1736527578067,16.15471,3265.0,3264.6,3.06307]
[1736527578267,16.15471,3265.0,3264.6,3.06311]
[1736527579068,16.15471,3265.0,3264.2,3.0]
[1736527579412,16.15471,3265.0,3264.5,3.06317]
[1736527579583,16.15471,3265.0,3264.5,0.306317]
[1736527579788,16.15471,3265.0,3264.7,3.06306]
[1736527579969,16.15471,3265.0,3264.7,3.67032508]
[1736527580408,16.15471,3265.0,3264.7,0.60726508]
[1736527581479,16.15471,3265.0,3264.1,0.36911516]
[1736527581805,16.15471,3265.0,3264.1,0.63237445]
[1736527582011,16.15471,3265.0,3264.2,3.06353]
[1736527582574,0.7825,3264.9,3264.1,0.60174449]
[1736527582775,3.06298,3264.8,3264.0,0.287]
[1736527582983,0.7825,3264.9,3263.9,3.0638]
[1736527583325,3.06297,3264.8,3263.9,3.48749837]
[1736527583526,3.06297,3264.8,3264.0,0.61769287]
[1736527583686,0.7825,3264.9,3263.9,0.45433374]
[1736527583875,0.7825,3264.9,3264.1,3.06361]
[1736527585012,0.7825,3264.9,3264.2,0.03063501]
[1736527585177,16.15471,3265.0,3264.5,3.06321]
[1736527585372,16.15471,3265.0,3264.3,0.34944475]
[1736527585576,16.15471,3265.0,3263.9,1.02329597]
[1736527585778,0.7692,3264.9,3263.7,6.52779246]
[1736527586013,0.7692,3264.9,3263.7,3.46381246]
[1736527586189,3.06305,3264.8,3263.8,3.0639]
[1736527587316,0.7692,3264.9,3263.7,3.46381246]
[1736527587480,0.7767,3264.6,3263.6,0.60672613]
[1736527587675,3.06346,3264.3,3263.4,3.86234]
[1736527587899,3.06346,3264.3,3263.4,1.42083781]
[1736527588100,3.06355,3264.2,3263.3,3.46381246]
[1736527588703,3.06355,3264.2,3263.3,4.08004744]
[1736527589282,3.0637,3264.1,3263.3,4.08004744]
[1736527589482,3.0638,3264.0,3263.3,4.08004744]
[1736527589808,0.306355,3264.2,3262.9,3.46381246]
[1736527589809,3.06407,3263.7,3262.9,3.46381246]
[1736527590008,3.89175,3263.9,3262.9,3.49445666]
[1736527590337,3.06404,3263.7,3262.9,3.46381246]
[1736527590929,0.389194,3263.7,3262.7,0.61660306]
[1736527591112,3.06429,3263.4,3262.7,0.61660306]
[1736527591421,0.8279,3263.9,3262.7,0.61660306]
[1736527591621,3.06412,3263.6,3262.7,0.61660306]
[1736527592037,0.8279,3263.9,3262.8,0.03064739]
[1736527592192,0.8279,3263.9,3262.5,3.46381246]
[1736527592391,3.06422,3263.5,3262.6,3.41137125]
[1736527592583,3.06402,3263.7,3262.6,0.37702838]
[1736527592788,7.3112863,3267.9,3262.9,3.46381246]
[1736527592789,3.06328,3264.5,3262.9,3.46381246]
[1736527593027,0.81,3264.8,3263.9,3.06374]
[1736527593187,0.81,3264.8,3264.0,0.03063512]
[1736527593386,0.81,3264.8,3264.2,3.0635]
[1736527593630,0.81,3264.8,3264.2,0.30635]
[1736527593929,0.81,3264.8,3264.1,3.06362]
[1736527594486,0.81,3264.8,3263.9,3.0638]
[1736527594813,0.81,3264.8,3263.8,0.03063422]
[1736527594814,0.81,3264.8,3263.8,0.6031705]
[1736527595020,0.0075,3264.7,3263.3,3.46381246]
[1736527595214,3.87365,3264.1,3263.2,3.06446]
[1736527595416,3.87365,3264.1,3263.3,0.335146]
[1736527595589,0.81,3264.1,3263.3,0.36578708]
[1736527595790,0.81,3264.1,3263.3,3.06434]
[1736527595991,0.81,3264.1,3263.6,0.61059659]
[1736527596331,3.87365,3264.1,3263.1,3.35154]
[1736527596516,3.87365,3264.1,3263.1,0.287]
[1736527596710,0.81,3264.1,3263.2,3.06446]
[1736527596903,3.87364,3264.1,3263.3,0.3657867]
[1736527597124,0.81,3264.1,3263.3,0.98822821]
[1736527597323,0.7968,3264.5,3263.3,0.65308221]
[1736527597565,0.7968,3264.5,3263.3,0.62244151]
[1736527597853,3.86007,3264.5,3263.6,3.06408]
[1736527598354,3.86007,3264.5,3263.3,0.62244151]
[1736527598355,0.7968,3264.5,3263.3,0.62244151]
[1736527598517,3.06337,3264.4,3263.3,0.62244151]
[1736527598714,3.06337,3264.4,3263.4,0.03063872]
[1736527598908,0.7968,3264.5,3263.4,0.03063872]
[1736527599109,0.8024,3264.8,3263.5,4.78668452]
[1736527599315,0.8024,3264.8,3263.6,3.50930208]
[1736527599536,16.15471,3265.0,3263.9,3.06381]
[1736527599753,16.15471,3265.0,3264.0,0.03063093]
[1736527599949,16.15471,3265.0,3263.6,3.47866845]
[1736527600136,19.21751,3265.0,3264.0,0.60002454]
[1736527600352,19.21751,3265.0,3264.1,3.09418234]
[1736527600529,3.06288,3264.9,3264.0,0.60002454]
[1736527600770,18.156701,3265.0,3263.6,0.47866845]
[1736527600771,3.06307,3264.7,3263.6,3.47866845]
[1736527601039,18.156701,3265.0,3263.9,3.68148759]
[1736527601356,18.156701,3265.0,3263.7,0.03063516]
[1736527601571,21.219521,3265.0,3264.0,3.06364]
[1736527601780,5.10124061,3264.9,3263.8,3.06383]
[1736527601957,3.06305,3264.8,3263.8,3.68263215]
[1736527602249,0.8066,3264.8,3263.5,3.84781]
[1736527602411,0.015,3264.7,3263.1,3.7946]
[1736527602611,3.06325,3264.5,3263.3,3.287]
[1736527602814,0.388475,3264.4,3263.3,0.88720863]
[1736527603017,3.06353,3264.2,3263.3,3.95152863]
[1736527603218,3.06353,3264.2,3263.3,3.98216912]
[1736527603846,0.388475,3264.4,3263.3,3.98216912]
[1736527604041,3.06348,3264.3,3263.3,3.97216912]
[1736527604357,3.4086755,3264.3,3263.3,3.97216912]
[1736527604531,0.3451955,3264.3,3263.3,0.90784912]
[1736527604728,3.06353,3264.3,3263.3,3.97221912]
[1736527604945,3.06356,3264.2,3263.3,3.97221912]
[1736527605258,3.06371,3264.1,3263.3,0.277]
[1736527605421,3.06348,3264.3,3263.3,3.09501051]
[1736527605764,3.06325,3264.5,3263.2,3.06445]
[1736527605925,3.06353,3264.3,3263.2,3.06445]
[1736527606131,3.06367,3264.1,3263.2,3.06445]
[1736527607148,3.06349,3264.3,3263.3,3.06436]
[1736527608057,3.06356,3264.2,3263.2,3.06446]
[1736527608220,3.06356,3264.2,3263.2,3.09510113]
[1736527608423,3.4087635,3264.2,3263.3,3.06435]
[1736527608836,0.388475,3264.4,3263.1,1.41412522]
[1736527609049,3.06366,3264.1,3263.1,4.47866522]
[1736527609356,3.06366,3264.1,3263.2,3.0644]
[1736527609561,3.06366,3264.1,3263.2,3.09504114]
[1736527609763,3.06366,3264.1,3263.2,3.0644]
[1736527609955,3.06366,3264.1,3263.2,3.09504112]
[1736527610158,3.06366,3264.1,3263.2,3.51531663]
[1736527611024,3.06377,3264.0,3263.2,0.45091663]
[1736527611242,3.06357,3264.2,3263.1,1.41412522]
[1736527611537,3.0634,3264.4,3263.1,1.41412522]
[1736527611751,0.0075,3264.5,3263.1,0.82524224]
[1736527612062,0.0075,3264.1,3262.7,0.7595]
[1736527612268,0.0225,3264.1,3262.7,0.7595]
[1736527612425,3.06411,3263.6,3262.7,0.7595]
[1736527612764,3.88267,3264.2,3263.3,3.06438]
[1736527612966,0.8191,3264.2,3262.8,0.84724042]
[1736527613169,0.7515,3264.8,3263.0,3.0]
[1736527613339,3.06327,3264.5,3263.5,3.06414]
[1736527614139,0.7515,3264.8,3263.9,0.8042]
[1736527614341,0.7515,3264.8,3264.0,3.06371]
[1736527614541,3.81449,3264.8,3264.0,0.386791]
[1736527614871,0.7515,3264.8,3264.0,0.386791]
[1736527615175,0.7515,3264.8,3263.5,4.45837419]
[1736527615470,3.06357,3264.2,3263.5,0.7711]
[1736527615635,3.06363,3264.1,3263.2,0.7711]
[1736527616064,3.87194,3264.0,3263.2,0.7711]
[1736527616401,0.8082,3264.0,3262.8,0.809]
[1736527616697,3.06411,3263.6,3262.8,1.2346352]
[1736527616999,3.06405,3263.7,3262.8,0.809]
[1736527617206,3.06405,3263.7,3262.8,3.90448486]
[1736527617800,3.06393,3263.8,3262.8,3.90448486]
[1736527617972,0.8082,3264.0,3262.8,0.83964486]
[1736527618174,3.06407,3263.7,3262.8,0.809]
[1736527618375,3.06381,3263.9,3262.8,1.49809069]
[1736527618700,3.06413,3263.6,3262.8,1.49809069]
[1736527619201,3.06391,3263.8,3262.8,0.809]
[1736527619703,3.06462,3263.1,3262.5,0.7909]
[1736527619867,3.06441,3263.3,3262.5,0.7909]
[1736527620201,0.015,3263.7,3262.5,0.7909]
[1736527620501,0.015,3263.7,3262.1,3.06547]
[1736527620502,3.06452,3263.2,3262.4,0.61793408]
[1736527620687,0.0225,3263.5,3262.4,0.61793408]
[1736527620890,0.390031,3263.4,3262.4,0.61793408]
[1736527621090,3.06459,3263.1,3262.4,0.61793408]
[1736527621305,3.06439,3263.3,3262.4,3.68308408]
[1736527621605,0.390031,3263.4,3262.4,0.61793408]
[1736527621764,0.8137,3263.6,3262.7,0.7956]
[1736527621965,0.8137,3263.6,3262.8,3.06482]
[1736527622202,3.06402,3263.7,3262.8,3.09546672]
[1736527622403,0.8147,3263.9,3262.7,1.18471963]
[1736527622404,3.06436,3263.4,3262.7,1.18471963]
[1736527622726,3.06478,3262.9,3262.4,0.61793408]
[1736527622867,3.06478,3262.9,3262.2,0.8184]
[1736527623223,3.06496,3262.7,3262.3,0.61952985]
[1736527623366,0.0075,3263.3,3262.3,0.61952985]
[1736527623702,3.06492,3262.8,3262.3,0.61952985]
[1736527623892,3.06496,3262.7,3262.3,0.61952985]
[1736527624268,0.7799,3262.8,3262.3,0.61952985]
[1736527624463,0.7799,3262.8,3261.9,0.8042]
[1736527624769,3.84545,3262.1,3261.2,0.7633]
[1736527624969,3.450195,3262.0,3260.8,0.7633]
[1736527625214,3.06603,3261.6,3260.8,0.7633]
[1736527625502,3.06629,3261.3,3260.8,0.7633]
[1736527625874,3.06629,3261.3,3260.5,1.1377018]
[1736527626205,0.384545,3262.0,3260.5,1.1377018]
[1736527626206,3.0656,3262.0,3260.6,3.49579637]
[1736527626376,3.06531,3262.4,3261.1,0.8171]
[1736527626576,0.7529,3262.5,3261.1,0.8171]
[1736527626779,3.06532,3262.3,3261.1,0.8171]
[1736527626994,3.06532,3262.3,3260.7,3.53016982]
[1736527626995,3.06618,3261.4,3260.6,0.7778]
[1736527627175,3.06619,3261.4,3260.6,0.7778]
[1736527627504,3.06569,3261.9,3260.6,1.16229]
[1736527627705,3.06643,3261.2,3260.6,0.7778]
[1736527627911,3.0665,3261.1,3260.6,0.7778]
[1736527628405,3.0666,3261.0,3260.2,0.7778]
[1736527628811,3.84057,3261.4,3260.4,3.06708]
[1736527629116,3.84057,3261.4,3260.2,0.7778]
[1736527629117,3.84057,3261.4,3260.3,0.03067103]
[1736527629426,3.06656,3261.0,3260.2,0.7778]
[1736527629634,0.0075,3261.3,3260.2,0.7778]
[1736527629783,3.06649,3261.1,3260.2,0.7778]
[1736527630597,3.06655,3261.0,3260.2,0.7778]
[1736527631695,0.0075,3261.3,3260.2,0.7778]